[Event "Swedish Chess Championship 2021: Sverigemastarklassen"]
[Site "Scandic Helsingborg Nord, Florettgatan 41, Helsingborg, Sweden"]
[Date "2021.07.10"]
[Round "8.5"]
[White "Wiedenkeller, Michael"]
[Black "Lokander, Martin"]
[Result "0-1"]
[TimeControl "90 minutes for 40 moves + 30 minutes for the rest of the game + 30 seconds per move from move one."]
[WhiteTitle "IM"]
[BlackTitle "IM"]
[WhiteFideId "1700146"]
[BlackFideId "1709569"]
[WhiteElo "2445"]
[BlackElo "2437"]

1. c4 {[%clk 01:30:33]} {[%emt 00:00:26]} e5 {[%clk 01:30:22]} {[%emt
00:00:39]} 2. Nc3 {[%clk 01:30:37]} {[%emt 00:00:26]} Nf6 {[%clk 01:30:30]}
{[%emt 00:00:22]} 3. Nf3 {[%clk 01:30:47]} {[%emt 00:00:20]} Nc6 {[%clk
01:30:25]} {[%emt 00:00:36]} 4. e3 {[%clk 01:30:51]} {[%emt 00:00:25]} Bb4
{[%clk 01:30:06]} {[%emt 00:00:50]} 5. Qc2 {[%clk 01:31:00]} {[%emt 00:00:20]}
O-O {[%clk 01:26:10]} {[%emt 00:04:26]} 6. Nd5 {[%clk 01:30:26]} {[%emt
00:01:04]} Re8 {[%clk 01:26:17]} {[%emt 00:00:23]} 7. Qf5 {[%clk 08:19:20]}
{[%emt 00:01:36]} d6 {[%clk 01:26:28]} {[%emt 00:00:19]} 8. Nxf6+ {[%clk
01:29:42]} {[%emt 00:00:08]} gxf6 {[%clk 01:26:44]} {[%emt 00:00:14]} 9. Qc2
{[%clk 01:25:58]} {[%emt 00:04:13]} e4 {[%clk 01:25:37]} {[%emt 00:01:38]} 10.
Ng1 {[%clk 01:20:18]} {[%emt 00:06:09]} d5 {[%clk 01:25:11]} {[%emt 00:00:56]}
11. a3 {[%clk 01:16:04]} {[%emt 00:04:44]} d4 {[%clk 01:24:27]} {[%emt
00:01:14]} 12. axb4 {[%clk 01:07:47]} {[%emt 00:08:47]} Nxb4 {[%clk 01:24:49]}
{[%emt 00:00:08]} 13. Qb3 {[%clk 01:06:58]} {[%emt 00:01:19]} a5 {[%clk
01:25:15]} {[%emt 00:00:04]} 14. Be2 {[%clk 01:00:02]} {[%emt 00:07:25]} c5
{[%clk 01:25:38]} {[%emt 00:00:08]} 15. Nh3 {[%clk 00:49:03]} {[%emt 00:11:28]}
d3 {[%clk 01:24:08]} {[%emt 00:02:02]} 16. Bd1 {[%clk 00:45:15]} {[%emt
00:04:18]} Bxh3 {[%clk 01:21:58]} {[%emt 00:02:39]} 17. gxh3 {[%clk 00:45:12]}
{[%emt 00:00:33]} h5 {[%clk 01:22:20]} {[%emt 00:00:08]} 18. Qc3 {[%clk
00:36:47]} {[%emt 00:08:54]} Re5 {[%clk 01:17:03]} {[%emt 00:05:48]} 19. b3
{[%clk 00:34:07]} {[%emt 00:03:10]} Qd7 {[%clk 01:09:22]} {[%emt 00:08:11]} 20.
Rg1+ {[%clk 00:15:26]} {[%emt 00:19:10]} Kh7 {[%clk 01:08:35]} {[%emt
00:01:18]} 21. Rg3 {[%clk 00:12:52]} {[%emt 00:03:03]} Rg8 {[%clk 01:07:44]}
{[%emt 00:01:21]} 22. Rxg8 {[%clk 00:03:08]} {[%emt 00:10:14]} Kxg8 {[%clk
01:07:21]} {[%emt 00:00:53]} 23. f4 {[%clk 00:00:33]} {[%emt 00:03:05]} Qxh3
{[%clk 01:06:08]} {[%emt 00:01:43]} 24. Kf2 {[%clk 00:00:31]} {[%emt 00:00:32]}
Qxh2+ {[%clk 01:06:20]} {[%emt 00:00:18]} 25. Kf1 {[%clk 00:00:55]} {[%emt
00:00:06]} h4 {[%clk 01:05:40]} {[%emt 00:01:11]} 26. Bg4 {[%clk 00:00:35]}
{[%emt 00:00:50]} h3 {[%clk 01:05:59]} {[%emt 00:00:11]} 0-1

[Event "Swedish Chess Championship 2021: Sverigemastarklassen"]
[Site "Scandic Helsingborg Nord, Florettgatan 41, Helsingborg, Sweden"]
[Date "2021.07.11"]
[Round "9.1"]
[White "Hillarp Persson, Tiger"]
[Black "Seo, Jung Min"]
[Result "1/2-1/2"]
[TimeControl "90 minutes for 40 moves + 30 minutes for the rest of the game + 30 seconds per move from move one."]
[WhiteTitle "GM"]
[BlackTitle "IM"]
[WhiteFideId "1700812"]
[BlackFideId "1734687"]
[WhiteElo "2542"]
[BlackElo "2453"]

1. d4 {[%clk 01:30:55]} {[%emt 00:00:04]} d5 {[%clk 01:30:52]} {[%emt
00:00:08]} 2. Nf3 {[%clk 01:31:13]} {[%emt 00:00:13]} Nf6 {[%clk 01:31:18]}
{[%emt 00:00:04]} 3. Bf4 {[%clk 01:31:32]} {[%emt 00:00:11]} e6 {[%clk
01:29:46]} {[%emt 00:02:02]} 4. e3 {[%clk 01:31:40]} {[%emt 00:00:22]} c5
{[%clk 01:30:08]} {[%emt 00:00:08]} 5. Nbd2 {[%clk 01:28:39]} {[%emt 00:03:32]}
Nc6 {[%clk 01:29:53]} {[%emt 00:00:45]} 6. c3 {[%clk 01:26:25]} {[%emt
00:02:45]} Be7 {[%clk 01:28:49]} {[%emt 00:01:33]} 7. h4 {[%clk 01:26:11]}
{[%emt 00:00:43]} Bd6 {[%clk 01:28:09]} {[%emt 00:01:10]} 8. Bb5 {[%clk
01:09:48]} {[%emt 00:16:53]} Bxf4 {[%clk 01:19:32]} {[%emt 00:09:09]} 9. exf4
{[%clk 01:09:57]} {[%emt 00:00:20]} Qb6 {[%clk 01:18:21]} {[%emt 00:01:41]} 10.
Qa4 {[%clk 00:53:48]} {[%emt 00:16:39]} O-O {[%clk 01:13:12]} {[%emt 00:05:39]}
11. dxc5 {[%clk 00:52:43]} {[%emt 00:01:36]} Qxc5 {[%clk 01:13:36]} {[%emt
00:00:06]} 12. O-O {[%clk 00:49:44]} {[%emt 00:03:28]} Bd7 {[%clk 01:01:07]}
{[%emt 00:12:59]} 13. Bxc6 {[%clk 00:44:02]} {[%emt 00:06:12]} bxc6 {[%clk
00:55:22]} {[%emt 00:06:16]} 14. Qd4 {[%clk 00:41:07]} {[%emt 00:03:24]} Qb5
{[%clk 00:50:10]} {[%emt 00:05:42]} 15. b4 {[%clk 00:34:32]} {[%emt 00:07:05]}
c5 {[%clk 00:49:47]} {[%emt 00:00:54]} 16. bxc5 {[%clk 00:34:31]} {[%emt
00:00:31]} Rfc8 {[%clk 00:47:53]} {[%emt 00:02:23]} 17. Ne5 {[%clk 00:23:41]}
{[%emt 00:11:21]} Qxc5 {[%clk 00:47:43]} {[%emt 00:00:40]} 18. Rfc1 {[%clk
00:24:00]} {[%emt 00:00:10]} h6 {[%clk 00:43:22]} {[%emt 00:04:52]} 19. Rab1
{[%clk 00:22:26]} {[%emt 00:02:04]} Be8 {[%clk 00:42:11]} {[%emt 00:01:41]} 20.
Nb3 {[%clk 00:16:17]} {[%emt 00:06:38]} Qa3 {[%clk 00:39:47]} {[%emt 00:02:53]}
21. Qb4 {[%clk 00:13:32]} {[%emt 00:03:16]} Qxa2 {[%clk 00:36:22]} {[%emt
00:03:55]} 22. Ra1 {[%clk 00:10:12]} {[%emt 00:03:49]} Qe2 {[%clk 00:36:44]}
{[%emt 00:00:07]} 23. Nd4 {[%clk 00:10:12]} {[%emt 00:00:33]} Qh5 {[%clk
00:34:58]} {[%emt 00:02:15]} 24. g3 {[%clk 00:10:06]} {[%emt 00:00:36]} Ng4
{[%clk 00:34:52]} {[%emt 00:00:37]} 25. Re1 {[%clk 00:09:54]} {[%emt 00:00:42]}
Nxe5 {[%clk 00:33:17]} {[%emt 00:02:06]} 26. Rxe5 {[%clk 00:10:15]} {[%emt
00:00:08]} Qg4 {[%clk 00:32:30]} {[%emt 00:01:15]} 27. Kg2 {[%clk 00:08:47]}
{[%emt 00:01:59]} Qg6 {[%clk 00:32:31]} {[%emt 00:00:29]} 28. f5 {[%clk
00:06:32]} {[%emt 00:02:46]} Qf6 {[%clk 00:31:41]} {[%emt 00:01:20]} 29. Rae1
{[%clk 00:06:27]} {[%emt 00:00:34]} a5 {[%clk 00:31:37]} {[%emt 00:00:35]} 30.
Qa3 {[%clk 00:06:02]} {[%emt 00:00:55]} exf5 {[%clk 00:29:53]} {[%emt
00:02:14]} 31. Nxf5 {[%clk 00:06:09]} {[%emt 00:00:23]} Rd8 {[%clk 00:29:04]}
{[%emt 00:01:19]} 32. Ne7+ {[%clk 00:05:19]} {[%emt 00:01:20]} Kh8 {[%clk
00:29:08]} {[%emt 00:00:26]} 33. Nxd5 {[%clk 00:04:39]} {[%emt 00:01:10]} Bc6
{[%clk 00:29:32]} {[%emt 00:00:06]} 34. c4 {[%clk 00:05:03]} {[%emt 00:00:05]}
a4 {[%clk 00:24:00]} {[%emt 00:06:02]} 35. h5 {[%clk 00:05:27]} {[%emt
00:00:06]} Bb7 {[%clk 00:22:31]} {[%emt 00:01:59]} 36. f3 {[%clk 00:02:08]}
{[%emt 00:03:48]} Bxd5 {[%clk 00:22:17]} {[%emt 00:00:45]} 37. cxd5 {[%clk
00:02:30]} {[%emt 00:00:08]} Qb6 {[%clk 00:22:17]} {[%emt 00:00:29]} 38. R1e3
{[%clk 00:02:07]} {[%emt 00:00:53]} Qd4 {[%clk 00:21:56]} {[%emt 00:00:50]} 39.
R3e4 {[%clk 00:00:52]} {[%emt 00:01:46]} Qd2+ {[%clk 00:22:21]} {[%emt
00:00:04]} 40. Re2 {[%clk 00:00:49]} {[%emt 00:00:34]} Qd4 {[%clk 00:22:39]}
{[%emt 00:00:12]} 41. Qa2 {[%clk 00:16:40]} {[%emt 00:14:39]} a3 {[%clk
00:52:24]} {[%emt 00:00:45]} 42. Re7 {[%clk 00:09:49]} {[%emt 00:07:21]} Rxd5
{[%clk 00:44:40]} {[%emt 00:08:15]} 43. g4 {[%clk 00:08:31]} {[%emt 00:01:48]}
f5 {[%clk 00:37:55]} {[%emt 00:07:15]} 44. gxf5 {[%clk 00:06:19]} {[%emt
00:02:41]} Rxf5 {[%clk 00:37:47]} {[%emt 00:00:39]} 45. Re8+ {[%clk 00:06:06]}
{[%emt 00:00:43]} Rf8 {[%clk 00:38:15]} {[%emt 00:00:02]} 46. Rxf8+ {[%clk
00:06:14]} {[%emt 00:00:22]} Rxf8 {[%clk 00:38:42]} {[%emt 00:00:04]} 47. Qxa3
{[%clk 00:06:33]} {[%emt 00:00:11]} Qf4 {[%clk 00:38:49]} {[%emt 00:00:22]} 48.
Re4 {[%clk 00:05:14]} {[%emt 00:01:49]} Qd2+ {[%clk 00:38:43]} {[%emt
00:00:36]} 49. Kg3 {[%clk 00:05:14]} {[%emt 00:00:31]} Qg5+ {[%clk 00:38:45]}
{[%emt 00:00:27]} 50. Rg4 {[%clk 00:04:57]} {[%emt 00:00:46]} Qf6 {[%clk
00:39:13]} {[%emt 00:00:03]} 51. Qe3 {[%clk 00:04:01]} {[%emt 00:01:26]} Qd6+
{[%clk 00:39:36]} {[%emt 00:00:06]} 52. Kg2 {[%clk 00:04:07]} {[%emt 00:00:24]}
Qf6 {[%clk 00:39:46]} {[%emt 00:00:20]} 53. Rg6 {[%clk 00:03:07]} {[%emt
00:01:31]} Qf7 {[%clk 00:40:09]} {[%emt 00:00:06]} 54. Qc3 {[%clk 00:02:23]}
{[%emt 00:01:13]} Kh7 {[%clk 00:40:32]} {[%emt 00:00:08]} 55. Qd3 {[%clk
00:02:38]} {[%emt 00:00:14]} Kh8 {[%clk 00:41:00]} {[%emt 00:00:03]} 56. Qc3
{[%clk 00:02:59]} {[%emt 00:00:09]} Kh7 {[%clk 00:41:28]} {[%emt 00:00:02]} 57.
Qd3 {[%clk 00:03:20]} {[%emt 00:00:08]} Kh8 {[%clk 00:41:57]} {[%emt 00:00:02]}
1/2-1/2

[Event "Swedish Chess Championship 2021: Sverigemastarklassen"]
[Site "Scandic Helsingborg Nord, Florettgatan 41, Helsingborg, Sweden"]
[Date "2021.07.11"]
[Round "9.2"]
[White "Westerberg, Jonathan"]
[Black "Blomqvist, Erik"]
[Result "1/2-1/2"]
[TimeControl "90 minutes for 40 moves + 30 minutes for the rest of the game + 30 seconds per move from move one."]
[WhiteTitle "GM"]
[BlackTitle "GM"]
[WhiteFideId "1701754"]
[BlackFideId "1709437"]
[WhiteElo "2534"]
[BlackElo "2535"]

1. e4 {[%clk 01:30:56]} {[%emt 00:00:02]} c5 {[%clk 01:30:52]} {[%emt
00:00:09]} 2. Nf3 {[%clk 01:30:09]} {[%emt 00:01:16]} d6 {[%clk 01:30:58]}
{[%emt 00:00:25]} 3. c3 {[%clk 01:27:40]} {[%emt 00:02:59]} Nf6 {[%clk
01:31:15]} {[%emt 00:00:13]} 4. h3 {[%clk 01:27:29]} {[%emt 00:00:41]} Nc6
{[%clk 01:28:02]} {[%emt 00:03:42]} 5. Bd3 {[%clk 01:27:22]} {[%emt 00:00:36]}
d5 {[%clk 01:26:07]} {[%emt 00:02:26]} 6. e5 {[%clk 01:27:27]} {[%emt
00:00:24]} Nd7 {[%clk 01:26:29]} {[%emt 00:00:08]} 7. Bb5 {[%clk 01:27:29]}
{[%emt 00:00:27]} e6 {[%clk 01:21:53]} {[%emt 00:05:07]} 8. O-O {[%clk
01:22:01]} {[%emt 00:05:58]} Qb6 {[%clk 01:15:48]} {[%emt 00:06:35]} 9. Qa4
{[%clk 01:21:41]} {[%emt 00:00:51]} c4 {[%clk 01:10:05]} {[%emt 00:06:12]} 10.
d4 {[%clk 01:20:07]} {[%emt 00:02:04]} cxd3 {[%clk 01:02:59]} {[%emt 00:07:37]}
11. b4 {[%clk 01:19:35]} {[%emt 00:01:01]} Be7 {[%clk 00:46:49]} {[%emt
00:16:40]} 12. Bxd3 {[%clk 01:17:39]} {[%emt 00:02:26]} O-O {[%clk 00:47:01]}
{[%emt 00:00:19]} 13. Re1 {[%clk 01:15:25]} {[%emt 00:02:43]} f6 {[%clk
00:46:04]} {[%emt 00:01:28]} 14. Qc2 {[%clk 01:07:48]} {[%emt 00:08:07]} fxe5
{[%clk 00:35:45]} {[%emt 00:10:49]} 15. Bxh7+ {[%clk 01:07:17]} {[%emt
00:01:00]} Kh8 {[%clk 00:31:11]} {[%emt 00:05:04]} 16. Bg6 {[%clk 00:25:33]}
{[%emt 00:42:15]} e4 {[%clk 00:31:35]} {[%emt 00:00:05]} 17. Be3 {[%clk
00:22:20]} {[%emt 00:03:43]} Qd8 {[%clk 00:29:21]} {[%emt 00:02:44]} 18. Nh2
{[%clk 00:16:09]} {[%emt 00:06:42]} Nde5 {[%clk 00:27:52]} {[%emt 00:01:59]} 19.
Bh5 {[%clk 00:13:46]} {[%emt 00:02:53]} Nc4 {[%clk 00:21:33]} {[%emt 00:06:49]}
20. Qe2 {[%clk 00:05:06]} {[%emt 00:09:10]} Nxe3 {[%clk 00:20:28]} {[%emt
00:01:34]} 21. fxe3 {[%clk 00:05:35]} {[%emt 00:00:01]} Bh4 {[%clk 00:11:10]}
{[%emt 00:09:47]} 22. Rf1 {[%clk 00:06:04]} {[%emt 00:00:02]} Rxf1+ {[%clk
00:11:34]} {[%emt 00:00:06]} 23. Nxf1 {[%clk 00:05:21]} {[%emt 00:01:14]} Ne5
{[%clk 00:09:53]} {[%emt 00:02:11]} 24. Nbd2 {[%clk 00:04:16]} {[%emt
00:01:35]} Bd7 {[%clk 00:09:24]} {[%emt 00:00:59]} 25. c4 {[%clk 00:03:21]}
{[%emt 00:01:26]} Qf6 {[%clk 00:08:23]} {[%emt 00:01:30]} 26. Rb1 {[%clk
00:02:32]} {[%emt 00:01:19]} Rf8 {[%clk 00:08:05]} {[%emt 00:00:47]} 27. g3
{[%clk 00:02:05]} {[%emt 00:00:57]} Bg5 {[%clk 00:08:06]} {[%emt 00:00:29]} 28.
h4 {[%clk 00:01:56]} {[%emt 00:00:40]} Bh6 {[%clk 00:07:03]} {[%emt 00:01:33]}
29. Nh2 {[%clk 00:01:26]} {[%emt 00:00:59]} g6 {[%clk 00:05:19]} {[%emt
00:02:14]} 30. Rf1 {[%clk 00:00:52]} {[%emt 00:01:04]} Qe7 {[%clk 00:03:11]}
{[%emt 00:02:38]} 31. Rxf8+ {[%clk 00:01:18]} {[%emt 00:00:04]} Qxf8 {[%clk
00:02:40]} {[%emt 00:01:00]} 32. Bg4 {[%clk 00:01:37]} {[%emt 00:00:12]} Qxb4
{[%clk 00:02:41]} {[%emt 00:00:29]} 33. cxd5 {[%clk 00:02:06]} Bb5 {[%clk
00:00:49]} {[%emt 00:02:22]} 34. Qf2 {[%clk 00:02:12]} {[%emt 00:00:24]} exd5
{[%clk 00:00:33]} {[%emt 00:00:46]} 35. Qf6+ {[%clk 00:01:33]} {[%emt
00:01:08]} Bg7 {[%clk 00:00:34]} {[%emt 00:00:29]} 36. Qd8+ {[%clk 00:01:39]}
{[%emt 00:00:25]} Kh7 {[%clk 00:00:57]} {[%emt 00:00:06]} 37. Be6 {[%clk
00:01:30]} {[%emt 00:00:39]} Qf8 {[%emt 00:00:58]} 38. Qxf8 {[%clk 00:00:33]}
{[%emt 00:01:25]} Bxf8 {[%clk 00:00:58]} {[%emt 00:00:02]} 39. Bxd5 {[%clk
00:00:57]} {[%emt 00:00:06]} Bh6 {[%clk 00:00:33]} {[%emt 00:00:55]} 40. Nhf1
{[%clk 00:00:37]} {[%emt 00:00:50]} Ng4 {[%clk 00:00:32]} {[%emt 00:00:31]} 41.
Bxb7 {[%clk 00:27:01]} {[%emt 00:04:06]} Nxe3 {[%clk 00:30:41]} {[%emt
00:00:22]} 42. Nh2 {[%clk 00:24:47]} {[%emt 00:02:43]} Bg7 {[%clk 00:24:07]}
{[%emt 00:07:04]} 43. Bxe4 {[%clk 00:23:21]} {[%emt 00:01:56]} Bc3 {[%clk
00:21:49]} {[%emt 00:02:48]} 44. Ndf1 {[%clk 00:19:05]} {[%emt 00:04:46]} Nxf1
{[%clk 00:18:45]} {[%emt 00:03:34]} 45. Nxf1 {[%clk 00:19:27]} {[%emt
00:00:08]} Bxf1 {[%clk 00:18:42]} {[%emt 00:00:33]} 46. Kxf1 {[%clk 00:19:53]}
{[%emt 00:00:04]} 1/2-1/2

[Event "Swedish Chess Championship 2021: Sverigemastarklassen"]
[Site "Scandic Helsingborg Nord, Florettgatan 41, Helsingborg, Sweden"]
[Date "2021.07.11"]
[Round "9.4"]
[White "Hector, Jonny"]
[Black "Smith, Axel"]
[Result "1-0"]
[TimeControl "90 minutes for 40 moves + 30 minutes for the rest of the game + 30 seconds per move from move one."]
[WhiteTitle "GM"]
[BlackTitle "GM"]
[WhiteFideId "1700090"]
[BlackFideId "1707930"]
[WhiteElo "2479"]
[BlackElo "2453"]

1. e4 {[%clk 01:30:44]} {[%emt 00:00:14]} e5 {[%clk 01:30:57]} {[%emt
00:00:04]} 2. Nf3 {[%clk 01:31:01]} {[%emt 00:00:13]} Nf6 {[%clk 01:31:25]}
{[%emt 00:00:04]} 3. Nxe5 {[%clk 01:31:12]} {[%emt 00:00:18]} d6 {[%clk
01:31:52]} {[%emt 00:00:04]} 4. Nf3 {[%clk 01:31:28]} {[%emt 00:00:13]} Nxe4
{[%clk 01:32:19]} {[%emt 00:00:04]} 5. d4 {[%clk 01:31:41]} {[%emt 00:00:16]}
d5 {[%clk 01:32:41]} {[%emt 00:00:09]} 6. Bd3 {[%clk 01:31:40]} {[%emt
00:00:29]} Nc6 {[%clk 01:31:33]} {[%emt 00:01:39]} 7. O-O {[%clk 01:31:22]}
{[%emt 00:00:47]} Be7 {[%clk 01:31:44]} {[%emt 00:00:20]} 8. c4 {[%clk
01:30:12]} {[%emt 00:01:39]} Nb4 {[%clk 01:32:02]} {[%emt 00:00:14]} 9. Be2
{[%clk 01:29:41]} {[%emt 00:00:59]} O-O {[%clk 01:31:59]} {[%emt 00:00:34]} 10.
Nc3 {[%clk 01:29:01]} {[%emt 00:01:10]} Bf5 {[%clk 01:32:05]} {[%emt 00:00:26]}
11. a3 {[%clk 01:28:24]} {[%emt 00:01:06]} Nxc3 {[%clk 01:32:33]} {[%emt
00:00:02]} 12. bxc3 {[%clk 01:28:43]} {[%emt 00:00:11]} Nc6 {[%clk 01:33:01]}
{[%emt 00:00:02]} 13. Re1 {[%clk 01:28:28]} {[%emt 00:00:43]} dxc4 {[%clk
01:28:31]} {[%emt 00:05:02]} 14. Bxc4 {[%clk 01:27:23]} {[%emt 00:01:34]} Bd6
{[%clk 01:27:20]} {[%emt 00:01:42]} 15. Bg5 {[%clk 01:19:58]} {[%emt 00:07:53]}
Qd7 {[%clk 01:14:28]} {[%emt 00:13:24]} 16. d5 {[%clk 01:09:13]} {[%emt
00:11:14]} Na5 {[%clk 01:06:37]} {[%emt 00:08:22]} 17. Bf1 {[%clk 01:03:04]}
{[%emt 00:06:37]} Rfe8 {[%clk 00:59:12]} {[%emt 00:07:55]} 18. Bd2 {[%clk
01:02:12]} {[%emt 00:01:21]} Rxe1 {[%clk 00:50:46]} {[%emt 00:08:57]} 19. Bxe1
{[%clk 00:56:27]} {[%emt 00:06:15]} b6 {[%clk 00:46:11]} {[%emt 00:05:06]} 20.
Ba6 {[%clk 00:37:10]} {[%emt 00:19:46]} Qe7 {[%clk 00:40:08]} {[%emt 00:06:34]}
21. c4 {[%clk 00:30:19]} {[%emt 00:07:21]} Bxa3 {[%clk 00:31:50]} {[%emt
00:08:49]} 22. Qa4 {[%clk 00:28:52]} {[%emt 00:01:57]} Bd6 {[%clk 00:18:29]}
{[%emt 00:13:51]} 23. Bxa5 {[%clk 00:25:31]} {[%emt 00:03:51]} bxa5 {[%clk
00:18:57]} {[%emt 00:00:03]} 24. Re1 {[%clk 00:25:13]} {[%emt 00:00:46]} Qf8
{[%clk 00:18:56]} {[%emt 00:00:32]} 25. Nd4 {[%clk 00:23:22]} {[%emt 00:02:20]}
Bg6 {[%clk 00:18:27]} {[%emt 00:01:01]} 26. g3 {[%clk 00:20:50]} {[%emt
00:03:02]} h6 {[%clk 00:14:34]} {[%emt 00:04:24]} 27. Kg2 {[%clk 00:18:05]}
{[%emt 00:03:13]} Bb4 {[%clk 00:13:25]} {[%emt 00:01:40]} 28. Re2 {[%clk
00:17:43]} {[%emt 00:00:51]} Qc5 {[%clk 00:11:34]} {[%emt 00:02:21]} 29. Nf3
{[%clk 00:05:56]} {[%emt 00:12:17]} Kh7 {[%clk 00:06:05]} {[%emt 00:06:00]} 30.
Ne5 {[%clk 00:05:16]} {[%emt 00:01:09]} Qd6 {[%clk 00:03:13]} {[%emt 00:03:23]}
31. Qc6 {[%clk 00:03:47]} {[%emt 00:01:59]} Qxc6 {[%clk 00:03:06]} {[%emt
00:00:38]} 32. Nxc6 {[%clk 00:04:10]} {[%emt 00:00:06]} Bf5 {[%clk 00:01:21]}
{[%emt 00:02:16]} 33. Rb2 {[%clk 00:02:39]} {[%emt 00:02:00]} Bc3 {[%clk
00:00:47]} {[%emt 00:01:05]} 34. Rb3 {[%clk 00:02:44]} {[%emt 00:00:24]} Bd2
{[%clk 00:01:14]} {[%emt 00:00:04]} 35. f3 {[%clk 00:01:58]} {[%emt 00:01:16]}
Re8 {[%clk 00:01:25]} {[%emt 00:00:19]} 36. Nd4 {[%clk 00:01:20]} {[%emt
00:01:07]} a4 {[%clk 00:00:56]} {[%emt 00:01:01]} 37. Ra3 {[%clk 00:01:18]}
{[%emt 00:00:32]} Bg6 {[%clk 00:00:34]} {[%emt 00:00:51]} 38. Rxa4 {[%clk
00:01:01]} {[%emt 00:00:47]} Be3 {[%clk 00:00:49]} {[%emt 00:00:15]} 39. c5
{[%clk 00:01:08]} {[%emt 00:00:23]} Rb8 {[%clk 00:00:33]} {[%emt 00:00:46]} 40.
d6 {[%clk 00:00:44]} {[%emt 00:00:53]} cxd6 {[%clk 00:00:41]} {[%emt 00:00:23]}
41. c6 {[%clk 00:26:10]} {[%emt 00:05:02]} Rb2+ {[%clk 00:12:29]} {[%emt
00:18:43]} 42. Kh3 {[%clk 00:24:05]} {[%emt 00:02:34]} Bxd4 {[%clk 00:12:19]}
{[%emt 00:00:42]} 43. Rxd4 {[%clk 00:24:19]} {[%emt 00:00:15]} Rc2 {[%clk
00:09:50]} {[%emt 00:02:59]} 44. Bc4 {[%clk 00:22:46]} {[%emt 00:02:02]} h5
{[%clk 00:04:44]} {[%emt 00:05:37]} 45. g4 {[%clk 00:20:14]} {[%emt 00:03:01]}
hxg4+ {[%clk 00:05:04]} {[%emt 00:00:12]} 46. fxg4 {[%clk 00:15:46]} {[%emt
00:04:57]} Rc3+ {[%clk 00:01:29]} {[%emt 00:04:05]} 47. Kg2 {[%clk 00:15:34]}
{[%emt 00:00:42]} Rc2+ {[%clk 00:01:41]} {[%emt 00:00:19]} 48. Kf3 {[%clk
00:15:38]} {[%emt 00:00:24]} f5 {[%clk 00:01:01]} {[%emt 00:01:11]} 49. c7
{[%clk 00:15:27]} {[%emt 00:00:41]} fxg4+ {[%clk 00:01:25]} {[%emt 00:00:07]}
50. Ke3 {[%clk 00:14:45]} {[%emt 00:01:11]} Bf5 {[%clk 00:01:42]} {[%emt
00:00:14]} 51. c8=Q {[%clk 00:14:56]} {[%emt 00:00:17]} Rc3+ {[%clk 00:01:16]}
{[%emt 00:00:57]} 52. Kd2 {[%clk 00:14:49]} {[%emt 00:00:36]} Rc2+ {[%clk
00:01:02]} {[%emt 00:00:46]} 53. Kd1 {[%clk 00:15:13]} {[%emt 00:00:05]} 1-0

[Event "Swedish Chess Championship 2021: Sverigemastarklassen"]
[Site "Scandic Helsingborg Nord, Florettgatan 41, Helsingborg, Sweden"]
[Date "2021.07.11"]
[Round "9.5"]
[White "Lokander, Martin"]
[Black "Cramling, Pia"]
[Result "1-0"]
[TimeControl "90 minutes for 40 moves + 30 minutes for the rest of the game + 30 seconds per move from move one."]
[WhiteTitle "IM"]
[BlackTitle "GM"]
[WhiteFideId "1709569"]
[BlackFideId "1700030"]
[WhiteElo "2437"]
[BlackElo "2459"]

1. d4 {[%clk 01:30:50]} {[%emt 00:00:10]} d5 {[%clk 01:30:52]} {[%emt
00:00:08]} 2. c4 {[%clk 01:30:55]} {[%emt 00:00:26]} dxc4 {[%clk 01:31:00]}
{[%emt 00:00:21]} 3. Nf3 {[%clk 01:30:58]} {[%emt 00:00:26]} Nf6 {[%clk
01:30:38]} {[%emt 00:00:52]} 4. e3 {[%clk 01:31:22]} {[%emt 00:00:07]} e6
{[%clk 01:30:52]} {[%emt 00:00:15]} 5. Bxc4 {[%clk 01:31:45]} {[%emt 00:00:09]}
c5 {[%clk 01:30:14]} {[%emt 00:01:07]} 6. O-O {[%clk 01:32:00]} {[%emt
00:00:15]} a6 {[%clk 01:30:18]} {[%emt 00:00:26]} 7. Qe2 {[%clk 01:27:38]}
{[%emt 00:04:53]} Nc6 {[%clk 01:28:16]} {[%emt 00:02:32]} 8. Rd1 {[%clk
01:23:29]} {[%emt 00:04:39]} Qc7 {[%clk 01:25:26]} {[%emt 00:03:19]} 9. Nc3
{[%clk 01:18:45]} {[%emt 00:05:15]} Be7 {[%clk 01:18:19]} {[%emt 00:07:36]} 10.
d5 {[%clk 01:18:09]} {[%emt 00:01:08]} exd5 {[%clk 01:18:39]} {[%emt 00:00:09]}
11. Bxd5 {[%clk 01:16:50]} {[%emt 00:01:49]} O-O {[%clk 01:18:23]} {[%emt
00:00:46]} 12. h3 {[%clk 01:16:29]} {[%emt 00:00:51]} b5 {[%clk 00:55:37]}
{[%emt 00:23:16]} 13. e4 {[%clk 01:13:53]} {[%emt 00:03:07]} b4 {[%clk
00:53:07]} {[%emt 00:02:59]} 14. Bxc6 {[%clk 01:13:30]} {[%emt 00:00:54]} Qxc6
{[%clk 00:53:17]} {[%emt 00:00:20]} 15. Nd5 {[%clk 01:13:58]} {[%emt 00:00:02]}
Re8 {[%clk 00:44:59]} {[%emt 00:08:45]} 16. Bg5 {[%clk 01:03:36]} {[%emt
00:10:54]} Bb7 {[%clk 00:40:26]} {[%emt 00:05:03]} 17. Rac1 {[%clk 00:56:33]}
{[%emt 00:07:34]} Nxd5 {[%clk 00:38:25]} {[%emt 00:02:31]} 18. exd5 {[%clk
00:54:54]} {[%emt 00:02:09]} Qd6 {[%clk 00:38:44]} {[%emt 00:00:09]} 19. Qc4
{[%clk 00:48:42]} {[%emt 00:06:43]} Bxg5 {[%clk 00:33:16]} {[%emt 00:05:58]} 20.
Nxg5 {[%clk 00:47:05]} {[%emt 00:02:08]} Qg6 {[%clk 00:33:30]} {[%emt
00:00:15]} 21. Qf4 {[%clk 00:45:16]} {[%emt 00:02:19]} h6 {[%clk 00:25:51]}
{[%emt 00:08:08]} 22. Nf3 {[%clk 00:45:20]} {[%emt 00:00:26]} Rac8 {[%clk
00:25:56]} {[%emt 00:00:25]} 23. Ne5 {[%clk 00:42:41]} {[%emt 00:03:11]} Qh5
{[%clk 00:25:40]} {[%emt 00:00:44]} 24. Nc4 {[%clk 00:42:38]} {[%emt 00:00:34]}
Rcd8 {[%clk 00:19:40]} {[%emt 00:06:29]} 25. Nd6 {[%clk 00:37:41]} {[%emt
00:05:28]} Re7 {[%clk 00:20:04]} {[%emt 00:00:05]} 26. Rd3 {[%clk 00:37:02]}
{[%emt 00:01:11]} Bc8 {[%clk 00:12:16]} {[%emt 00:08:17]} 27. Rg3 {[%clk
00:18:46]} {[%emt 00:18:46]} Qxd5 {[%clk 00:08:47]} {[%emt 00:03:56]} 28. Qf6
{[%clk 00:17:08]} {[%emt 00:02:11]} g6 {[%clk 00:09:02]} {[%emt 00:00:15]} 29.
Nxc8 {[%clk 00:17:09]} {[%emt 00:00:30]} 1-0